bitfinex-derivatives/quotes_BTCF0:USTF0_20250424
["timestamp","ask_amount","ask_price","bid_price","bid_amount"]
[1745496200226,0.1078491,92711.0,92702.0,0.27178742]
[1745496200426,0.1078491,92711.0,92709.0,0.3608]
[1745496200730,0.1078491,92711.0,92706.0,0.1078548]
[1745496200932,0.2029491,92711.0,92707.0,0.0315]
[1745496201128,0.3749491,92711.0,92707.0,0.139353]
[1745496201327,0.3749491,92711.0,92708.0,0.1078524]
[1745496201529,0.3749491,92711.0,92707.0,0.0315]
[1745496201731,0.3435491,92711.0,92710.0,0.1678502]
[1745496201925,0.3435491,92711.0,92710.0,0.06]
[1745496202125,0.1715491,92711.0,92710.0,0.1678502]
[1745496202332,0.1715491,92711.0,92710.0,0.093]
[1745496203137,0.3435491,92711.0,92710.0,0.2008502]
[1745496203635,0.3435491,92711.0,92710.0,0.093]
[1745496204231,0.1715491,92711.0,92710.0,0.093]
[1745496204433,0.1715491,92711.0,92710.0,0.1249]
[1745496204634,0.1715491,92711.0,92710.0,0.2327502]
[1745496205134,0.3435491,92711.0,92710.0,0.2327502]
[1745496205429,0.3435491,92711.0,92710.0,0.1249]
[1745496205635,0.3435491,92711.0,92710.0,0.093]
[1745496206330,0.1715491,92711.0,92710.0,0.093]
[1745496217143,0.3435491,92711.0,92710.0,0.093]
[1745496219336,0.3435491,92711.0,92710.0,0.06]
[1745496222252,0.1715491,92711.0,92710.0,0.06]
[1745496223149,0.3435491,92711.0,92710.0,0.06]
[1745496223649,0.3435491,92711.0,92710.0,0.1241]
[1745496229444,0.3435491,92711.0,92710.0,0.2319502]
[1745496229653,0.3435491,92711.0,92710.0,0.1241]
[1745496230052,0.3435491,92711.0,92710.0,0.1544]
[1745496233350,0.3435491,92711.0,92710.0,0.1241]
[1745496234246,0.3435491,92711.0,92710.0,0.06]
[1745496234563,0.3741491,92711.0,92710.0,0.06]
[1745496241551,0.3435491,92711.0,92710.0,0.06]
[1745496241751,0.2798491,92711.0,92710.0,0.06]
[1745496242153,0.3123491,92711.0,92710.0,0.06]
[1745496242557,0.3452491,92711.0,92710.0,0.06]
[1745496246452,0.3123491,92711.0,92710.0,0.1678502]
[1745496246654,0.3123491,92711.0,92710.0,0.06]
[1745496247356,0.3123491,92711.0,92710.0,0.1219]
[1745496253357,0.3454491,92711.0,92710.0,0.0917]
[1745496253956,0.3759491,92711.0,92705.0,0.032]
[1745496254159,0.107863,92699.0,92698.0,0.3608]
[1745496254361,0.1078677,92695.0,92676.0,0.3608]
[1745496254567,0.1078677,92695.0,92686.0,0.24890054]
[1745496255164,0.3119677,92695.0,92690.0,0.0303]
[1745496255361,0.1078735,92690.0,92686.0,0.21870054]
[1745496255570,0.1078735,92690.0,92686.0,0.24900054]
[1745496256162,0.8451735,92690.0,92686.0,0.24900054]
[1745496257075,0.8451735,92690.0,92687.0,0.0322]
[1745496257259,0.7798735,92690.0,92689.0,0.00361831]
[1745496257459,0.2798735,92690.0,92689.0,0.00361831]
[1745496258665,0.3106735,92690.0,92689.0,0.00361831]
[1745496258867,0.1078782,92686.0,92685.0,0.09849]
[1745496259065,0.1078875,92678.0,92677.0,0.0301]
[1745496260061,0.1078956,92671.0,92670.0,0.0329]
[1745496260863,0.1078968,92670.0,92669.0,0.0301]
[1745496261067,0.1729968,92670.0,92669.0,0.0301]
[1745496261959,0.1079003,92667.0,92666.0,0.00107914]
[1745496263163,0.2799003,92667.0,92666.0,0.00107914]
[1745496263360,0.2799003,92667.0,92666.0,0.00307914]
[1745496264167,0.2799003,92667.0,92666.0,0.00507914]
[1745496264366,0.7799003,92667.0,92666.0,0.00507914]
[1745496265369,0.7799003,92667.0,92666.0,0.00307914]
[1745496265573,0.7799003,92667.0,92666.0,0.00407914]
[1745496266474,0.7799003,92667.0,92666.0,0.00207914]
[1745496272374,0.2799003,92667.0,92666.0,0.06407914]
[1745496272575,0.2799003,92667.0,92666.0,0.17198054]
[1745496273465,0.2799003,92667.0,92666.0,0.06407914]
[1745496276175,0.2799003,92667.0,92666.0,0.03377914]
[1745496277865,0.2799003,92667.0,92666.0,0.03277914]
[1745496278065,0.2799003,92667.0,92666.0,0.03377914]
[1745496279178,0.2799003,92667.0,92666.0,0.00207914]
[1745496279382,0.27991201,92667.0,92643.0,0.0322]
[1745496279683,0.1079271,92644.0,92643.0,0.1401282]
[1745496279879,0.1079271,92644.0,92643.0,0.15077263]
[1745496280075,0.2799271,92644.0,92643.0,0.15077263]
[1745496281090,0.2799271,92644.0,92643.0,0.1707282]
[1745496281384,0.2799271,92644.0,92643.0,0.1757282]
[1745496281888,0.2799271,92644.0,92643.0,0.1807282]
[1745496283886,0.3118271,92644.0,92643.0,0.0728]
[1745496285286,0.3118271,92644.0,92643.0,0.0406]
[1745496287583,0.3428271,92644.0,92643.0,0.0406]
[1745496287790,0.0539643,92643.0,92636.0,0.00107949]
[1745496287979,0.1079341,92638.0,92637.0,0.0311]
[1745496288180,0.6407341,92638.0,92637.0,0.0311]
[1745496289088,0.7055341,92638.0,92637.0,0.0311]
[1745496289582,0.7055341,92638.0,92637.0,0.0381]
[1745496289984,0.7055341,92638.0,92637.0,0.0431]
[1745496290284,0.7055341,92638.0,92637.0,0.012]
[1745496290880,0.7055341,92638.0,92637.0,0.0755]
[1745496293793,0.7055341,92638.0,92637.0,0.0442]
[1745496294000,0.7055341,92638.0,92637.0,0.012]
[1745496294994,0.1079376,92635.0,92634.0,0.0326]
[1745496295189,0.0539716,92631.0,92628.0,0.01070701]
[1745496295391,0.1079492,92625.0,92624.0,0.0313]
[1745496295594,0.4687492,92625.0,92624.0,0.1392504]
[1745496296193,0.6407492,92625.0,92624.0,0.0313]
[1745496296497,0.6407492,92625.0,92624.0,0.04196036]
[1745496296702,0.6407492,92625.0,92624.0,0.04996036]
[1745496296999,0.6407492,92625.0,92624.0,0.0393]
[1745496297195,0.7047492,92625.0,92624.0,0.1472504]
[1745496297390,0.7047492,92625.0,92624.0,0.0463]
[1745496297595,0.6735492,92625.0,92624.0,0.1542504]
[1745496298697,0.6407492,92625.0,92624.0,0.1542504]
[1745496300205,0.6407492,92625.0,92624.0,0.0463]
[1745496300400,0.6407492,92625.0,92624.0,0.1542504]
[1745496304918,0.6407492,92625.0,92624.0,0.0463]
[1745496305314,0.6734492,92625.0,92624.0,0.0463]
[1745496305718,0.6734492,92625.0,92624.0,0.1542504]
[1745496307028,0.6407492,92625.0,92624.0,0.1542504]
[1745496311927,0.6735492,92625.0,92624.0,0.1542504]
[1745496314423,0.923564,92625.0,92612.0,0.21810508]
[1745496314615,0.1079702,92607.0,92603.0,0.27564799]
[1745496314815,0.5380102,92607.0,92603.0,0.27564799]
[1745496315021,0.8959942,92607.0,92603.0,0.27564799]
[1745496315216,1.0679942,92607.0,92603.0,0.27564799]
[1745496316118,1.0679942,92607.0,92606.0,4e-08]
[1745496316313,0.1079737,92604.0,92603.0,0.20670473]
[1745496316514,0.1079853,92594.0,92583.0,0.00540053]
[1745496316724,0.4687853,92594.0,92583.0,0.00540053]
[1745496316921,0.4770032,92594.0,92583.0,0.00540053]
[1745496317318,0.6801032,92594.0,92583.0,0.00540053]
[1745496317512,0.7411032,92594.0,92583.0,0.00540053]
[1745496317916,0.107997,92584.0,92583.0,0.00540053]
[1745496318126,0.468797,92584.0,92583.0,0.00540053]
[1745496318722,0.529897,92584.0,92583.0,0.00540053]
[1745496319227,0.701897,92584.0,92583.0,0.00540053]
[1745496319624,0.702897,92584.0,92583.0,0.00540053]
[1745496320227,0.702897,92584.0,92583.0,0.00840053]
[1745496331432,0.5949,92584.0,92555.0,0.0540153]
[1745496331734,0.1080052,92577.0,92570.0,0.1080124]
[1745496331929,0.1080052,92577.0,92569.0,0.1731138]
[1745496332129,0.2800052,92577.0,92570.0,0.1080133]
[1745496332534,0.3452052,92577.0,92576.0,0.00308019]
[1745496332727,0.3452052,92577.0,92576.0,0.00608019]
[1745496333422,0.3462052,92577.0,92576.0,0.00308019]
[1745496335434,0.3482052,92577.0,92576.0,0.00108019]
[1745496340834,0.3482052,92577.0,92576.0,0.10908649]
[1745496341036,0.3154052,92577.0,92576.0,0.00108019]
[1745496341224,0.2830052,92577.0,92576.0,0.10908649]
[1745496349442,0.3150052,92577.0,92576.0,0.17248649]
[1745496349930,0.3150052,92577.0,92576.0,0.06448019]
[1745496350331,0.3470052,92577.0,92576.0,0.06448019]
[1745496350736,0.3470052,92577.0,92576.0,0.00108019]
[1745496352039,0.3470052,92577.0,92576.0,9e-08]
[1745496353628,0.8490052,92577.0,92576.0,9e-08]
[1745496354429,0.8520052,92577.0,92576.0,9e-08]
[1745496355033,0.9600252,92577.0,92576.0,9e-08]
[1745496355231,0.9560252,92577.0,92576.0,9e-08]
[1745496355435,0.9600252,92577.0,92576.0,9e-08]
[1745496356841,0.9610252,92577.0,92576.0,9e-08]
[1745496357541,0.9570252,92577.0,92576.0,9e-08]
[1745496357842,0.1080402,92547.0,92536.0,0.3608]
[1745496358044,0.4688402,92547.0,92537.0,0.0311]
[1745496359134,0.6408402,92547.0,92537.0,0.0311]
[1745496359335,0.6418402,92547.0,92546.0,0.00208054]
[1745496360343,0.2810402,92547.0,92546.0,0.11013254]
[1745496360640,0.2810402,92547.0,92546.0,0.36013254]
[1745496360847,0.2840402,92547.0,92546.0,0.11013254]
[1745496361229,0.1120402,92547.0,92546.0,0.11013254]
[1745496361430,0.1120402,92547.0,92546.0,0.14273254]
[1745496362240,0.2840402,92547.0,92546.0,0.14273254]
[1745496363247,0.2840402,92547.0,92546.0,0.17383254]
[1745496364145,0.2840402,92547.0,92546.0,0.06578054]
[1745496367442,0.2840402,92547.0,92546.0,0.17382194]
[1745496367741,0.2840402,92547.0,92546.0,0.28187394]
[1745496368147,0.1120402,92547.0,92546.0,0.28187394]
[1745496369147,0.2840402,92547.0,92546.0,0.28187394]
[1745496371445,0.176,92547.0,92546.0,0.28187394]
[1745496373367,0.3608,92570.0,92566.0,0.1620242]
[1745496373543,0.1620309,92567.0,92566.0,0.1620242]
[1745496374049,0.3340309,92567.0,92566.0,0.1620242]
[1745496374651,0.3340309,92567.0,92566.0,0.1630242]
[1745496374842,0.3648309,92567.0,92566.0,0.1630242]
[1745496375043,0.3688309,92567.0,92566.0,0.1640242]
[1745496375551,0.3688309,92567.0,92566.0,0.110018]
[1745496375752,0.4004309,92567.0,92566.0,0.110018]
[1745496375954,0.4004309,92567.0,92566.0,0.002]
[1745496376144,0.4074309,92567.0,92566.0,0.002]
[1745496377746,0.4074309,92567.0,92566.0,0.110018]
[1745496377943,0.4074309,92567.0,92566.0,0.002]
[1745496378643,0.7682309,92567.0,92566.0,0.002]
[1745496386947,0.4074309,92567.0,92566.0,0.002]
[1745496387147,1.1290309,92567.0,92566.0,0.002]
[1745496388557,1.1290309,92567.0,92557.0,0.1080284]
[1745496388558,0.1080273,92558.0,92557.0,0.1080284]
[1745496388763,0.4688273,92558.0,92557.0,0.1080284]
[1745496388963,0.5654273,92558.0,92557.0,0.1080284]
[1745496389155,0.7374273,92558.0,92557.0,0.1080284]
[1745496389756,0.7424273,92558.0,92557.0,0.1080284]
[1745496390053,0.7103273,92558.0,92557.0,0.1080284]
[1745496390256,0.7123273,92558.0,92557.0,0.1391284]
[1745496390457,0.6810273,92558.0,92557.0,0.1090284]
[1745496390652,0.6810273,92558.0,92557.0,0.1717284]
[1745496393660,0.3202273,92558.0,92557.0,0.1717284]
[1745496398864,0.3202273,92558.0,92557.0,0.18732916]
[1745496400766,0.3202273,92558.0,92557.0,0.1717284]
[1745496405472,0.2122,92558.0,92557.0,0.1717284]
[1745496405675,0.3202273,92558.0,92557.0,0.1717284]
[1745496408272,0.2122,92558.0,92557.0,0.1717284]
[1745496408972,0.3202273,92558.0,92557.0,0.1717284]
[1745496409267,0.2122,92558.0,92557.0,0.1717284]
[1745496409469,0.3202273,92558.0,92557.0,0.1717284]
[1745496411469,0.3202273,92558.0,92557.0,0.1395284]
[1745496411669,0.3202273,92558.0,92557.0,0.1090284]
[1745496413368,0.3202273,92558.0,92557.0,0.1090285]
[1745496415159,0.3202273,92558.0,92557.0,0.001]
[1745496416375,0.3202273,92558.0,92557.0,0.1090285]
[1745496416575,0.3202273,92558.0,92557.0,0.001]
[1745496421275,0.6810273,92558.0,92557.0,0.001]
[1745496423569,0.6810273,92558.0,92557.0,0.1090285]
[1745496423970,0.6810273,92558.0,92557.0,0.001]
[1745496424980,0.6810273,92558.0,92557.0,0.1090285]
[1745496425670,0.573,92558.0,92557.0,0.1090285]
[1745496425872,0.6810273,92558.0,92557.0,0.1090285]
[1745496426280,0.6810273,92558.0,92557.0,0.2047285]
[1745496426976,0.6810273,92558.0,92557.0,0.001]
[1745496427366,1.0418273,92558.0,92557.0,0.001]
[1745496433174,0.1080402,92547.0,92546.0,0.00108054]
[1745496433394,0.4688402,92547.0,92546.0,0.00108054]
[1745496433974,0.5336402,92547.0,92546.0,0.00108054]
[1745496434175,0.7056402,92547.0,92546.0,0.00108054]
[1745496434373,0.7086402,92547.0,92546.0,0.00208054]
[1745496435375,0.7086402,92547.0,92546.0,0.11012194]
[1745496435886,0.6755402,92547.0,92546.0,0.11012194]
[1745496436383,0.6755402,92547.0,92546.0,0.14262194]
[1745496436580,0.6755402,92547.0,92546.0,0.17342194]
[1745496438785,0.7073402,92547.0,92546.0,0.17342194]
[1745496439477,0.7073402,92547.0,92546.0,0.06538054]
[1745496441182,0.7073402,92547.0,92546.0,0.17342194]
[1745496442587,0.6755402,92547.0,92546.0,0.17342194]
[1745496443284,0.6438402,92547.0,92546.0,0.17342194]
[1745496443585,0.2830402,92547.0,92546.0,0.17342194]
[1745496448591,0.6438402,92547.0,92546.0,0.17342194]
[1745496450589,0.2830402,92547.0,92546.0,0.17342194]
[1745496455392,0.175,92547.0,92546.0,0.17342194]
[1745496455590,0.1080266,92559.0,92557.0,0.1080285]
[1745496455884,0.0540115,92562.0,92557.0,0.1080285]
[1745496456089,0.5328,92558.0,92557.0,0.1080285]
[1745496456887,0.172,92558.0,92557.0,0.1407285]
[1745496457083,0.174,92558.0,92557.0,0.5355285]
[1745496457491,0.178,92558.0,92557.0,0.5355285]
[1745496459889,0.2860273,92558.0,92557.0,0.54615554]
[1745496460586,0.2860273,92558.0,92557.0,0.5355285]
[1745496461187,0.3189273,92558.0,92557.0,0.5355285]
[1745496462697,0.3189273,92558.0,92557.0,0.1747285]
[1745496463190,0.3189273,92558.0,92557.0,0.1417285]
[1745496465188,0.3497273,92558.0,92557.0,0.1417285]
[1745496465387,0.3497273,92558.0,92557.0,0.1090285]
[1745496468992,0.3189273,92558.0,92557.0,0.1090285]
[1745496469190,0.3189273,92558.0,92557.0,0.1717285]
[1745496470190,0.3189273,92558.0,92557.0,0.1401285]
[1745496470780,0.3519273,92558.0,92557.0,0.1401285]
[1745496470981,0.3519273,92558.0,92557.0,0.1090285]
[1745496473690,0.3519273,92558.0,92557.0,0.001]
[1745496473902,0.3519273,92558.0,92557.0,0.1090285]
[1745496474392,0.3519273,92558.0,92557.0,0.001]
[1745496478694,0.1080402,92547.0,92546.0,0.00108054]
[1745496478994,0.4688402,92547.0,92546.0,0.00108054]
[1745496479189,0.6408402,92547.0,92546.0,0.10912194]
[1745496479695,0.7036402,92547.0,92546.0,0.10912194]
[1745496479998,0.7046402,92547.0,92546.0,0.10912194]
[1745496480202,0.7056402,92547.0,92546.0,0.11112194]
[1745496489092,0.7056402,92547.0,92531.0,0.00829684]
[1745496489093,0.108053,92536.0,92529.0,0.16421957]
[1745496489292,0.468853,92536.0,92532.0,0.108057]
[1745496489496,0.468853,92536.0,92530.0,0.0313]
[1745496489695,0.468853,92536.0,92535.0,0.11345753]
[1745496490103,0.704353,92536.0,92535.0,0.11345753]
[1745496490305,0.704353,92536.0,92535.0,0.11445753]
[1745496490689,0.671753,92536.0,92535.0,0.11445753]
[1745496490901,0.310953,92536.0,92535.0,0.11445753]
[1745496491099,0.671753,92536.0,92535.0,0.00640333]
[1745496491704,0.10806,92530.0,92529.0,0.16421957]
[1745496492196,0.1080682,92523.0,92522.0,0.21895942]
[1745496493202,0.2800682,92523.0,92522.0,0.21895942]
[1745496493413,0.2800682,92523.0,92519.0,0.1088029]
[1745496493414,0.1080717,92520.0,92519.0,0.1088029]
[1745496493709,0.1080822,92511.0,92510.0,0.04909475]
[1745496493998,0.4688822,92511.0,92510.0,0.04909475]
[1745496494203,0.6408822,92511.0,92510.0,0.04909475]
[1745496494604,0.7031822,92511.0,92510.0,0.04909475]
[1745496494990,0.7041822,92511.0,92510.0,0.05009475]
[1745496497305,0.7041822,92511.0,92510.0,0.05209475]
[1745496498494,0.7041822,92511.0,92510.0,0.003]
[1745496501804,0.70394965,92511.0,92510.0,0.003]
[1745496503008,0.77682965,92511.0,92510.0,0.003]
[1745496504715,1.27682965,92511.0,92510.0,0.003]
[1745496506809,0.1080939,92501.0,92500.0,0.1]
[1745496507012,0.4688939,92501.0,92500.0,0.1]
[1745496507214,0.74900191,92501.0,92500.0,0.1]
[1745496508002,0.81170191,92501.0,92500.0,0.1]
[1745496508207,0.81270191,92501.0,92500.0,0.101]
[1745496508900,0.7774739,92501.0,92500.0,0.101]
[1745496509104,0.5663,92501.0,92500.0,0.2090951]
[1745496509304,0.6743939,92501.0,92500.0,0.2090951]
[1745496510005,0.6743939,92501.0,92500.0,0.2712951]
[1745496514111,0.1080903,92511.0,92510.0,0.0540393]
[1745496514317,0.1621367,92505.0,92504.0,0.10809]
[1745496514723,0.5229367,92505.0,92504.0,0.10809]
[1745496515214,0.1080904,92504.0,92503.0,0.0305]
[1745496515404,0.1383904,92504.0,92503.0,0.0305]
[1745496515604,0.1383904,92504.0,92503.0,0.1385916]
[1745496516208,0.3103904,92504.0,92503.0,0.1385916]
[1745496516509,0.3113904,92504.0,92503.0,0.1385916]
[1745496516702,0.3445904,92504.0,92503.0,0.1385916]
[1745496516903,0.3445904,92504.0,92501.0,0.0540464]
[1745496517103,0.1080939,92501.0,92500.0,0.2080951]
[1745496517501,0.1080939,92501.0,92500.0,0.2715951]
[1745496518107,0.2800939,92501.0,92500.0,0.2715951]
[1745496518713,0.2810939,92501.0,92500.0,0.2725951]
[1745496521310,0.3122939,92501.0,92500.0,0.2725951]
[1745496521706,0.3122939,92501.0,92500.0,0.2393951]
[1745496522614,0.3122939,92501.0,92500.0,0.2705951]
[1745496527815,0.3122939,92501.0,92500.0,0.2393951]
[1745496528319,0.3448939,92501.0,92500.0,0.2393951]
[1745496529516,0.3448939,92501.0,92500.0,0.2716951]
[1745496532825,0.3448939,92501.0,92500.0,0.2393951]
[1745496534426,0.3448939,92501.0,92500.0,0.2090951]
[1745496535711,0.3448939,92501.0,92500.0,0.101]
[1745496552524,0.3448939,92501.0,92500.0,0.2090951]
[1745496552726,0.3448939,92501.0,92500.0,0.101]
[1745496557525,0.3448939,92501.0,92500.0,0.2090951]
[1745496557834,0.3448939,92501.0,92500.0,0.101]
[1745496558332,0.3448939,92501.0,92500.0,0.1958]
[1745496558928,0.3448939,92501.0,92500.0,0.1632]
[1745496560037,0.3448939,92501.0,92500.0,0.1958]
[1745496560948,0.7056939,92501.0,92500.0,0.1632]
[1745496564736,0.1081091,92488.0,92483.0,0.0540572]
[1745496564932,0.4689091,92488.0,92484.0,0.0973]
[1745496565232,0.6409091,92488.0,92473.0,0.0540631]
[1745496565436,0.6409091,92488.0,92480.0,0.0968]
[1745496565639,0.7025091,92488.0,92480.0,0.0968]
[1745496566029,0.7025091,92488.0,92483.0,0.1081143]
[1745496566230,0.7025091,92488.0,92484.0,0.0319]
[1745496566729,0.7025091,92488.0,92482.0,0.033]
[1745496566930,0.7025091,92488.0,92482.0,0.0649]
[1745496567225,0.0540588,92481.0,92477.0,0.11895348]
[1745496567430,0.3608,92478.0,92477.0,0.11895348]
[1745496567738,0.4689208,92478.0,92477.0,0.11895348]
[1745496568144,0.6409208,92478.0,92477.0,0.11895348]
[1745496568530,0.6419208,92478.0,92477.0,0.15215348]
[1745496570742,0.2811208,92478.0,92477.0,0.15215348]
[1745496572241,0.173,92478.0,92477.0,0.15215348]
[1745496572843,0.0540506,92495.0,92494.0,0.1081009]
[1745496573339,0.0540506,92495.0,92494.0,0.1721009]
[1745496573533,0.0540506,92495.0,92494.0,0.1721021]
[1745496573733,0.1621473,92498.0,92497.0,0.1080986]
[1745496574139,0.3341473,92498.0,92497.0,0.1080986]
[1745496574640,0.3341473,92498.0,92497.0,0.1387986]
[1745496575143,0.3421473,92498.0,92497.0,0.1387986]
[1745496575844,0.3411473,92498.0,92497.0,0.1387986]
[1745496576541,0.3361473,92498.0,92497.0,0.1387986]
[1745496576746,0.3401473,92498.0,92497.0,0.1387986]
[1745496577548,0.178,92498.0,92497.0,0.1387986]
[1745496577740,0.2860974,92498.0,92497.0,0.1387986]
[1745496578249,0.2840974,92498.0,92497.0,0.1387986]
[1745496578450,0.2860974,92498.0,92497.0,0.1387986]
[1745496578743,0.176,92498.0,92497.0,0.1387986]
[1745496578948,0.178,92498.0,92497.0,0.1387986]
[1745496579145,0.11079782,92517.0,92508.0,0.0540426]
[1745496579347,0.031,92511.0,92510.0,0.1080834]
[1745496579644,0.031,92511.0,92510.0,0.1713834]
[1745496580038,0.1390822,92511.0,92510.0,0.1713834]
[1745496580243,0.3110822,92511.0,92510.0,0.1713834]
[1745496580642,0.3110822,92511.0,92510.0,0.18233344]
[1745496580847,0.3160822,92511.0,92510.0,0.18333344]
[1745496581434,0.3180822,92511.0,92510.0,0.18433344]
[1745496581839,0.3160822,92511.0,92510.0,0.18333344]
[1745496582039,0.3180822,92511.0,92510.0,0.18433344]
[1745496582446,0.3180822,92511.0,92510.0,0.1733834]
[1745496582644,0.3150822,92511.0,92510.0,0.1414834]
[1745496582945,0.3150822,92511.0,92510.0,0.001]
[1745496583547,0.3130822,92511.0,92510.0,0.001]
[1745496583951,0.1080892,92505.0,92504.0,0.1080896]
[1745496584252,0.4688892,92505.0,92504.0,0.1080896]
[1745496584641,0.162142,92502.0,92501.0,0.1080935]
[1745496585145,0.398442,92502.0,92501.0,0.1080935]
[1745496587649,0.398442,92502.0,92501.0,0.1090935]
[1745496588255,0.399442,92502.0,92501.0,0.1110935]
[1745496589852,0.760242,92502.0,92501.0,0.1110935]
[1745496591653,0.760242,92502.0,92501.0,0.003]
[1745496591853,0.760242,92502.0,92501.0,0.1110939]
[1745496592650,0.760242,92502.0,92501.0,0.003]
[1745496593550,0.760242,92502.0,92496.0,0.1080992]
[1745496593551,0.1081079,92489.0,92488.0,0.1081081]
[1745496593948,0.1081196,92480.0,92479.0,0.0540597]
[1745496594253,0.0540585,92482.0,92481.0,0.1081173]
[1745496594555,0.1081138,92484.0,92483.0,0.1081138]
[1745496594740,0.1081138,92484.0,92483.0,0.1691138]
[1745496595140,0.2801138,92484.0,92483.0,0.1691138]
[1745496596154,0.2811138,92484.0,92483.0,0.1701138]
[1745496597856,0.2811138,92484.0,92483.0,0.1691138]
[1745496598155,0.2821138,92484.0,92483.0,0.1691138]
[1745496598357,0.173,92484.0,92483.0,0.1691138]
[1745496598557,0.174,92484.0,92483.0,0.1691138]
[1745496598856,0.2821138,92484.0,92483.0,0.1691138]
[1745496599354,0.174,92484.0,92483.0,0.1691138]
[1745496599958,0.173,92484.0,92483.0,0.1691138]
[1745496600153,0.001,92484.0,92483.0,0.1691138]
[1745496600463,0.001,92484.0,92483.0,0.2772418]
[1745496601953,0.1081034,92493.0,92492.0,0.1081044]
[1745496602559,0.1081068,92491.0,92490.0,0.1081061]
[1745496602955,0.1399068,92491.0,92490.0,0.1081061]
[1745496603157,0.3119068,92491.0,92490.0,0.1081061]
[1745496603657,0.2038,92491.0,92490.0,0.1081061]
[1745496603857,0.172,92491.0,92490.0,0.2030061]
[1745496604250,0.172,92491.0,92490.0,0.3111261]
[1745496604664,0.174,92491.0,92490.0,0.3111261]
[1745496605062,0.174,92491.0,92490.0,0.2030061]
[1745496605260,0.002,92491.0,92490.0,0.2030061]
[1745496606364,0.002,92491.0,92490.0,0.2040061]
[1745496606968,0.001,92491.0,92490.0,0.2040061]
[1745496607264,0.173,92491.0,92490.0,0.2050061]
[1745496607466,0.173,92491.0,92490.0,0.1101061]
[1745496607860,0.173,92491.0,92490.0,0.1720061]
[1745496609259,0.0329,92491.0,92490.0,0.3440061]
[1745496610775,0.001,92491.0,92490.0,0.3440061]
[1745496610965,0.0321,92495.0,92494.0,0.1081021]
[1745496611166,0.0321,92495.0,92494.0,0.2801021]
[1745496611868,0.0321,92495.0,92494.0,0.3439021]
[1745496612064,0.0331,92495.0,92494.0,0.3449021]
[1745496614271,0.0341,92495.0,92494.0,0.3449021]
[1745496614671,0.0341,92495.0,92494.0,0.7057021]
[1745496617472,0.0331,92495.0,92494.0,0.7047021]
[1745496617772,0.0341,92495.0,92494.0,0.7057021]
[1745496618164,0.0331,92495.0,92494.0,0.7057021]
[1745496618373,0.0341,92495.0,92494.0,0.7057021]
[1745496618574,0.0341,92495.0,92494.0,0.7047021]
[1745496618878,0.0341,92495.0,92494.0,0.7057021]
[1745496619074,0.0331,92495.0,92494.0,0.7057021]
[1745496620475,0.0331,92495.0,92494.0,0.6728021]
[1745496620666,0.0321,92495.0,92494.0,0.6718021]
[1745496620866,0.0331,92495.0,92494.0,0.6728021]
[1745496621260,0.0321,92495.0,92494.0,0.6718021]
[1745496621567,0.0331,92495.0,92494.0,0.6728021]
[1745496622168,0.0341,92495.0,92494.0,0.6728021]
[1745496622468,0.0341,92495.0,92494.0,0.7032021]
[1745496622668,0.0341,92495.0,92494.0,0.6419021]
[1745496624469,0.0321,92495.0,92494.0,0.6409021]
[1745496624674,0.0341,92495.0,92494.0,0.6419021]
[1745496625279,0.1412009,92495.0,92494.0,0.6419021]
[1745496625474,0.0341,92495.0,92494.0,0.6409021]
[1745496625779,0.0341,92495.0,92494.0,0.6419021]
[1745496627084,0.1422009,92495.0,92494.0,0.6419021]
[1745496627280,0.1422009,92495.0,92494.0,0.173]
[1745496627575,0.1402009,92495.0,92494.0,0.172]
[1745496627770,0.1422009,92495.0,92494.0,0.173]
[1745496628175,0.3132009,92495.0,92494.0,0.1081021]
[1745496628493,0.1081044,92493.0,92492.0,0.1081034]
[1745496628880,0.1696044,92493.0,92492.0,0.1081034]
[1745496630478,0.1706044,92493.0,92492.0,0.1091034]
[1745496630981,0.1706044,92493.0,92492.0,0.1081034]
[1745496631184,0.1716044,92493.0,92492.0,0.1081034]
[1745496632077,0.0635,92493.0,92492.0,0.1081034]
[1745496632281,0.1716033,92493.0,92492.0,0.1081034]
[1745496635076,0.1716033,92493.0,92492.0,0.2801034]
[1745496635383,0.0635,92493.0,92492.0,0.2801034]
[1745496636075,0.0635,92493.0,92492.0,0.1081034]
[1745496636478,0.0332,92493.0,92492.0,0.5330034]
[1745496637284,0.0332,92493.0,92492.0,0.7050034]
[1745496640987,0.05675982,92517.0,92514.0,0.1621152]
[1745496641281,0.0540392,92515.0,92514.0,0.216154]
[1745496641681,0.0309,92516.0,92515.0,0.1080776]
[1745496641882,0.1389764,92516.0,92515.0,0.1080776]
[1745496642277,0.2013764,92516.0,92515.0,0.1080776]
[1745496643789,0.2083764,92516.0,92515.0,0.1080776]
[1745496644787,0.2083764,92516.0,92515.0,0.1090776]
[1745496646489,0.2083764,92516.0,92515.0,0.1080776]
[1745496650092,0.2053764,92516.0,92515.0,0.1080776]
[1745496650290,0.2083764,92516.0,92515.0,0.1080776]
[1745496650589,0.2053764,92516.0,92515.0,0.1080776]
[1745496650790,0.2083764,92516.0,92515.0,0.1080776]
[1745496654287,0.2013764,92516.0,92515.0,0.1080776]
[1745496654490,0.1080799,92514.0,92513.0,0.108079]
[1745496654893,0.1726799,92514.0,92513.0,0.108079]
[1745496656687,0.1776799,92514.0,92513.0,0.108079]
[1745496657194,0.1080881,92507.0,92506.0,0.11904642]
[1745496657492,0.1080881,92507.0,92506.0,0.1080881]
[1745496657688,0.1080916,92504.0,92503.0,0.1080908]
[1745496658084,0.1713916,92504.0,92503.0,0.2800908]
[1745496659094,0.1713916,92504.0,92503.0,0.1080908]
[1745496660089,0.1713916,92504.0,92503.0,0.1188552]
[1745496660295,0.1723916,92504.0,92503.0,0.1198552]
[1745496661096,0.1723916,92504.0,92503.0,0.2918552]
[1745496661689,0.1723916,92504.0,92503.0,0.3570552]
[1745496662595,0.1723916,92504.0,92503.0,0.3246552]
[1745496668199,0.1723916,92504.0,92503.0,0.001]
[1745496668896,0.1723916,92504.0,92503.0,0.1090916]
[1745496669096,0.1723916,92504.0,92503.0,0.001]
[1745496671204,0.17353151,92504.0,92503.0,0.001]
[1745496672410,0.17391195,92504.0,92503.0,0.001]
[1745496674610,0.17429239,92504.0,92503.0,0.001]
[1745496674803,0.17429239,92504.0,92503.0,0.1090916]
[1745496675311,0.17463552,92504.0,92503.0,0.1090916]
[1745496675708,0.17463552,92504.0,92503.0,0.001]
[1745496676207,0.53543552,92504.0,92503.0,0.001]
[1745496679905,0.17463552,92504.0,92503.0,0.001]
[1745496680094,0.53543552,92504.0,92503.0,0.001]
[1745496680499,0.53581589,92504.0,92503.0,0.001]
[1745496682610,0.53599025,92504.0,92503.0,0.001]